Workbook

Sheet Beef Repl
B3: KSU-Beef Replacements
B5: An Excel spreadsheet program to evaluate the economic value of purchasing beef replacement females.
L8: Version- 1.12.2016
B28: INTRODUCTION
B29: A spreadsheet program to calculate the net present value of purchasing replacment heifers given expectations for calf selling price, weaning weights, cull cow price, and a target rate of return on investment.
B31: INSTRUCTIONS FOR THE USER:
B32: Be sure to "Enable Content" and "Enable Macros" for the spreadsheet to function correctly.
B33: In the Price and weights and Net Present Value tabs all blue numbers are inputs and all black numbers are calculated from these inputs. Several input cells (i.e., blue number) have a red diamond in the upper right hand corner of the cell. By moving your mouse cursor over this diamond, a brief description of the input will be displayed on the screen.
B40: FOR MORE INFORMATION:
B41: Updated by: | H41: Originally developed by:
B43: Glynn T. Tonsor, Ph.D. | H43: Kevin C. Dhuyvetter, Ph.D.
B44: Agricultural Economist | H44: Former Extension Agricultural Economist
B45: Department of Agricultural Economics | H45: Department of Agricultural Economics
B46: Kansas State University | H46: Kansas State University
B47: gtonsor@k-state.edu
B48: 785-532-1518
B49: Copyright 2016 AgManager.info, K-State Department of Agricultural Economics

Sheet Prices and weights
B2: Calf (average of steer and heifer) and Cull Cow Price Scenarios ($/cwt) | J2: Weaning Weight (steer and heifer) Scenarios
C4: Scenario 1 (S1) | E4: Scenario 2 (S2) | G4: Scenario 3 (S3) | K4: Scenario1 | L4: Scenario2 | M4: Scenario3
C5: USDA (As of Nov. '15) | E5: Flat at $25 under Scen 1 | G5: Scenario 1 +10% | K5: Low peak | L5: Constant | M5: High peak
B6: Year | C6: Calf | D6: Cull cow | E6: Calf | F6: Cull cow | G6: Calf | H6: Cull cow | J6: Calf | K6: Lbs/hd | L6: Lbs/hd | M6: Lbs/hd
B7: ='Net present value'!G5 -> 2016 | C7: 205 | D7: =C7*0.44 -> 90.2 | E7: =C7-25 -> 180 | F7: =E7*0.44 -> 79.2 | G7: =C7*1.1 -> 225.5 | H7: =G7*0.44 -> 99.22 | J7: 1 | K7: 542 | L7: 562 | M7: 537
B8: =B7+1 -> 2017 | C8: 169.5689373 | D8: =C8*0.44 -> 74.61033239 | E8: =E7 -> 180 | F8: =E8*0.44 -> 79.2 | G8: =C8*1.1 -> 186.525831 | H8: =G8*0.44 -> 82.07136563 | J8: 2 | K8: 552 | L8: =L7 -> 562 | M8: 552
B9: =B8+1 -> 2018 | C9: 158.2022667 | D9: 69.60899735 | E9: =E8 -> 180 | F9: 79.2 | G9: 174.0224934 | H9: 76.56989709 | J9: 3 | K9: 562 | L9: =L8 -> 562 | M9: 567
B10: 2019 | C10: 151.5875598 | D10: 66.69852633 | E10: 180 | F10: 79.2 | G10: 166.7463158 | H10: 73.36837896 | J10: 4 | K10: 567 | L10: 562 | M10: 582
B11: 2020 | C11: 144.8130862 | D11: 63.71775795 | E11: 180 | F11: 79.2 | G11: 159.2943949 | H11: 70.08953374 | J11: 5 | K11: 572 | L11: 562 | M11: 582
B12: 2021 | C12: 143.0534196 | D12: 62.94350463 | E12: 180 | F12: 79.2 | G12: 157.3587616 | H12: 69.2378551 | J12: 6 | K12: 572 | L12: 562 | M12: 577
B13: 2022 | C13: 140.2450785 | D13: 61.70783454 | E13: 180 | F13: 79.2 | G13: 154.2695863 | H13: 67.87861799 | J13: 7 | K13: 567 | L13: 562 | M13: 567
B14: 2023 | C14: 138.6668814 | D14: 61.01342783 | E14: 180 | F14: 79.2 | G14: 152.5335696 | H14: 67.11477061 | J14: 8 | K14: 565 | L14: 562 | M14: 557
B15: 2024 | C15: 139.4468379 | D15: 61.35660868 | E15: 180 | F15: 79.2 | G15: 153.3915217 | H15: 67.49226954 | J15: 9 | K15: 562 | L15: 562 | M15: 552
B16: 2025 | C16: 140.26 | D16: 61.7144 | E16: 180 | F16: 79.2 | G16: 154.286 | H16: 67.88584 | J16: 10 | K16: 559 | L16: 562 | M16: 547
B17: Average | C17: =AVERAGE(C7:C16) -> 153.0844068 | D17: 67.35713897 | E17: 180 | F17: 79.2 | G17: 168.3928474 | H17: 74.09285287 | J17: Average | K17: =AVERAGE(K7:K16) -> 562 | L17: =AVERAGE(L7:L16) -> 562 | M17: =AVERAGE(M7:M16) -> 562
B19: Average weight for calf price (average of steer and heifer), lbs/head | H19: 525
B20: Price slide (change in price for weight deviation from base), $/lb | H20: 0.0842

Sheet Net present value
B2: Input Assumptions
B3: Number of replacements purchased | G3: 100 | I3: Percent marketable calves (1 - death loss) | N3: 0.97
B4: Year of purchase | G4: 2016 | I4: Annual cow death loss | N4: 0.005
B5: First year for calf sales | G5: 2016 | I5: Annual cull rate | N5: 0.15
B6: Cull cow weight, lbs/hd | G6: 1250
B7: Annual cow costs, $/year | G7: 700 | I7: Annual inflation rate on costs | N7: 0.01
B8: ="Price scenario to use (1-3) ("&IF(G8=1,'Prices and weights'!C5,IF(G8=2,'Prices and weights'!E5,'Prices and weights'!G5))&")" -> Price scenario to use (1-3) (USDA (As of Nov. '15)) | G8: 1 | I8: Annual increase in average weaning weight | N8: 0 | AJ8: Sensitivity to discount rate | AM8: Sensitivity to calf/cull prices
B9: Weaning weight scenario to use (1-3) | G9: 1 | I9: Discount rate (interest rate) | N9: 0.075 | R9: Values for sensitivity analysis down below | AJ9: 0.9 | AK9: <= % of base | AM9: 1.1 | AN9: <= % of base
B11: Net Present Value Analysis | R11: Annual cow costs, $/year | X11: Annual Cull Rate | AD11: Annual Cull Rate | AJ11: =N9*AJ9 -> 0.0675
C12: Cows at | F12: Prices, $/cwt | H12: Calf | I12: Cull Income | L12: Cost | M12: Net | N12: Discount | R12: =D33 -> 560 | S12: =E33 -> 630 | T12: =F33 -> 700 | U12: =G33 -> 770 | V12: =H33 -> 840 | X12: =Y12-H72 -> 0.1 | Y12: =Z12-H72 -> 0.125 | Z12: =N5 -> 0.15 | AA12: =Z12+H72 -> 0.175 | AB12: =AA12+H72 -> 0.2 | AD12: =X12 -> 0.1 | AE12: =Y12 -> 0.125 | AF12: =Z12 -> 0.15 | AG12: =AA12 -> 0.175 | AH12: =AB12 -> 0.2 | AJ12: Discount | AM12: Prices, $/cwt | AO12: Calf | AP12: Cull Income | AR12: Net
B13: Year | C13: BOY* | D13: Calf | E13: Calf wt | F13: Calf | G13: Cull | H13: Income | I13: Annual | J13: Age | K13: Cost | L13: Adj. | M13: Income | N13: factor | O13: NPV** | R13: Cost | S13: Cost | T13: Cost | U13: Cost | V13: Cost | X13: Cows at Beginning of Year (BOY) | AD13: Net Income | AJ13: factor | AK13: NPV** | AM13: Calf | AN13: Cull | AO13: Income | AP13: Annual | AQ13: Age | AR13: Income | AS13: NPV**
B14: =G5 -> 2016 | C14: =G3 -> 100 | D14: =IF(G5=B14,1,0) -> 1 | E14: =VLOOKUP(D14,weights,IF(G$9=1,2,IF(G$9=2,3,4)))*(1+N$8)^(B14-G$5) -> 542 | F14: =VLOOKUP(B14,Prices,IF(G$8=1,2,IF(G$8=2,4,6)))+('Prices and weights'!H$19-E14)*'Prices and weights'!H$20 -> 203.5686 | G14: =VLOOKUP(B14,Prices,IF(G$8=1,3,IF(G$8=2,5,7))) -> 90.2 | H14: =IF(B14>=G$5,E14*F14/100*N$3*C14/G$3,0) -> 1070.241558 | I14: =IF(B14>=G$5,G$6*G14/100*(N$5*C14/G$3),0) -> 169.125 | J14: =IF(B14>=G$5,G$6*G14/100*(C14*(1-N$4-N$5))/G$3,0) -> 952.7375 | K14: =G$7*(1+N$7)^(B14-G$4)*C14/G$3 -> 700 | L14: 0 | M14: =H14+I14-K14-L14 -> 539.3665576 | N14: =1/(1+N$9)^(B14-G$4) -> 1 | O14: =SUMPRODUCT(M$14:M14,N$14:N14)+J14*N14 -> 1492.104058 | R14: =D$33*(1+N$7)^(B14-G$4)*C14/G$3 -> 560 | S14: =E$33*(1+N$7)^(B14-G$4)*C14/G$3 -> 630 | T14: =F$33*(1+N$7)^(B14-G$4)*C14/G$3 -> 700 | U14: =G$33*(1+N$7)^(B14-G$4)*C14/G$3 -> 770 | V14: =H$33*(1+N$7)^(B14-G$4)*C14/G$3 -> 840 | X14: =$G3 -> 100 | Y14: =$G3 -> 100 | Z14: =$G3 -> 100 | AA14: =$G3 -> 100 | AB14: =$G3 -> 100 | AD14: =IF(B14>=G$5,E14*F14/100*N$3*X14/G$3,0)+IF(B14>=G$5,G$6*G14/100*(AD$12*X14/G$3),0)-G$7*(1+N$7)^(B14-G$4)*X14/G$3-L14 -> 482.9915576 | AE14: =IF(B14>=G$5,E14*F14/100*N$3*Y14/G$3,0)+IF(B14>=G$5,G$6*G14/100*(AE$12*Y14/G$3),0)-G$7*(1+N$7)^(B14-G$4)*Y14/G$3-L14 -> 511.1790576 | AF14: =IF(B14>=G$5,E14*F14/100*N$3*Z14/G$3,0)+IF(B14>=G$5,G$6*G14/100*(AF$12*Z14/G$3),0)-G$7*(1+N$7)^(B14-G$4)*Z14/G$3-L14 -> 539.3665576 | AG14: =IF(B14>=G$5,E14*F14/100*N$3*AA14/G$3,0)+IF(B14>=G$5,G$6*G14/100*(AG$12*AA14/G$3),0)-G$7*(1+N$7)^(B14-G$4)*AA14/G$3-L14 -> 567.5540576 | AH14: =IF(B14>=G$5,E14*F14/100*N$3*AB14/G$3,0)+IF(B14>=G$5,G$6*G14/100*(AH$12*AB14/G$3),0)-G$7*(1+N$7)^(B14-G$4)*AB14/G$3-L14 -> 595.7415576 | AJ14: =1/(1+AJ$11)^(B14-G$4) -> 1 | AK14: =SUMPRODUCT(M$14:M14,AJ$14:AJ14)+J14*AJ14 -> 1492.104058 | AM14: =VLOOKUP(B14,Prices,IF(G$8=1,2,IF(G$8=2,4,6)))*AM$9+('Prices and weights'!H$19-E14)*'Prices and weights'!H$20 -> 224.0686 | AN14: =G14*AM$9 -> 99.22 | AO14: =IF(B14>=G$5,E14*AM14/100*N$3*C14/G$3,0) -> 1178.018258 | AP14: =IF(B14>=G$5,G$6*AN14/100*(N$5*C14/G$3),0) -> 186.0375 | AQ14: =IF(B14>=G$5,G$6*AN14/100*(C14*(1-N$4-N$5))/G$3,0) -> 1048.01125 | AR14: =AO14+AP14-K14-L14 -> 664.0557576 | AS14: =SUMPRODUCT(AR$14:AR14,N$14:N14)+AQ14*N14 -> 1712.067008
B15: =+B14+1 -> 2017 | C15: =C14*(1-N$4-N$5) -> 84.5 | D15: =IF(D14>0,D14+1,IF(G$5=B15,1,0)) -> 2 | E15: 552 | F15: =VLOOKUP(B15,Prices,IF(G$8=1,2,IF(G$8=2,4,6)))+('Prices and weights'!H$19-E15)*'Prices and weights'!H$20 -> 167.2955373 | G15: =VLOOKUP(B15,Prices,IF(G$8=1,3,IF(G$8=2,5,7))) -> 74.61033239 | H15: =IF(B15>=G$5,E15*F15/100*N$3*C15/G$3,0) -> 756.9233049 | I15: =G$6*G15/100*(N$5*C15/G$3) -> 118.2107454 | J15: =IF(B15>=G$5,G$6*G15/100*(C15*(1-N$4-N$5))/G$3,0) -> 665.9205323 | K15: =G$7*(1+N$7)^(B15-G$4)*C15/G$3 -> 597.415 | L15: 0 | M15: =H15+I15-K15-L15 -> 277.7190503 | N15: 0.9302325581 | O15: =SUMPRODUCT(M$14:M15,N$14:N15)+J15*N15 -> 1417.170821 | R15: 477.932 | S15: 537.6735 | T15: 597.415 | U15: 657.1565 | V15: 716.898 | X15: =X14*(1-$N$4-X$12) -> 89.5 | Y15: =Y14*(1-$N$4-Y$12) -> 87 | Z15: =Z14*(1-$N$4-Z$12) -> 84.5 | AA15: =AA14*(1-$N$4-AA$12) -> 82 | AB15: =AB14*(1-$N$4-AB$12) -> 79.5 | AD15: 252.4169755 | AE15: 265.6509061 | AF15: 277.7190503 | AG15: 288.621408 | AH15: 298.3579793 | AJ15: 0.9367681499 | AK15: =SUMPRODUCT(M$14:M15,AJ$14:AJ15)+J15*AJ15 -> 1423.338064 | AM15: =VLOOKUP(B15,Prices,IF(G$8=1,2,IF(G$8=2,4,6)))*AM$9+('Prices and weights'!H$19-E15)*'Prices and weights'!H$20 -> 184.252431 | AN15: 82.07136563 | AO15: 833.6442279 | AP15: 130.0318199 | AQ15: 732.5125856 | AR15: 366.2610478 | AS15: =SUMPRODUCT(AR$14:AR15,N$14:N15)+AQ15*N15 -> 1686.170765
B16: 2018 | C16: 71.4025 | D16: =IF(D15>0,D15+1,IF(G$5=B16,1,0)) -> 3 | E16: 562 | F16: =VLOOKUP(B16,Prices,IF(G$8=1,2,IF(G$8=2,4,6)))+('Prices and weights'!H$19-E16)*'Prices and weights'!H$20 -> 155.0868667 | G16: 69.60899735 | H16: 603.6656853 | I16: =G$6*G16/100*(N$5*C16/G$3) -> 93.19230813 | J16: 524.9833358 | K16: 509.8638318 | L16: 0 | M16: 186.9941617 | N16: 0.8653326122 | O16: =SUMPRODUCT(M$14:M16,N$14:N16)+J16*N16 -> 1413.807208 | R16: 407.8910654 | S16: 458.8774486 | T16: 509.8638318 | U16: 560.8502149 | V16: 611.8365981 | X16: =X15*(1-$N$4-X$12) -> 80.1025 | Y16: 75.69 | Z16: 71.4025 | AA16: 67.24 | AB16: 63.2025 | AD16: 174.9292749 | AE16: 181.7578814 | AF16: 186.9941617 | AG16: 190.7196886 | AH16: 193.0160352 | AJ16: 0.8775345666 | AK16: =SUMPRODUCT(M$14:M16,AJ$14:AJ16)+J16*AJ16 -> 1424.309783 | AM16: =VLOOKUP(B16,Prices,IF(G$8=1,2,IF(G$8=2,4,6)))*AM$9+('Prices and weights'!H$19-E16)*'Prices and weights'!H$20 -> 170.9070934 | AN16: 76.56989709 | AO16: 665.2449033 | AP16: 102.5115389 | AQ16: 577.4816694 | AR16: 257.8926105 | AS16: =SUMPRODUCT(AR$14:AR16,N$14:N16)+AQ16*N16 -> 1727.640317
B17: 2019 | C17: 60.3351125 | D17: 4 | E17: 567 | F17: =VLOOKUP(B17,Prices,IF(G$8=1,2,IF(G$8=2,4,6)))+('Prices and weights'!H$19-E17)*'Prices and weights'!H$20 -> 148.0511598 | G17: 66.69852633 | H17: 491.2886535 | I17: 75.45493293 | J17: 425.0627889 | K17: 435.1432872 | L17: 0 | M17: 131.6002992 | N17: 0.8049605695 | O17: =SUMPRODUCT(M$14:M17,N$14:N17)+J17*N17 -> 1407.613843 | R17: 348.1146298 | S17: 391.6289585 | T17: 435.1432872 | U17: 478.6576159 | V17: 522.1719446 | X17: 71.6917375 | Y17: 65.8503 | Z17: 60.3351125 | AA17: 55.1368 | AB17: 50.2459875 | AD17: 126.4850385 | AE17: 129.9044155 | AF17: 131.6002992 | AG17: 131.754291 | AH17: 130.5401758 | AJ17: 0.8220464324 | AK17: =SUMPRODUCT(M$14:M17,AJ$14:AJ17)+J17*AJ17 -> 1421.221665 | AM17: =VLOOKUP(B17,Prices,IF(G$8=1,2,IF(G$8=2,4,6)))*AM$9+('Prices and weights'!H$19-E17)*'Prices and weights'!H$20 -> 163.2099158 | AN17: 73.36837896 | AO17: 541.5910275 | AP17: 83.00042623 | AQ17: 467.5690677 | AR17: 189.4481665 | AS17: =SUMPRODUCT(AR$14:AR17,N$14:N17)+AQ17*N17 -> 1756.799563
B18: 2020 | C18: 50.98317006 | D18: 5 | E18: 572 | F18: =VLOOKUP(B18,Prices,IF(G$8=1,2,IF(G$8=2,4,6)))+('Prices and weights'!H$19-E18)*'Prices and weights'!H$20 -> 140.8556862 | G18: 63.71775795 | H18: 398.4455517 | I18: 60.90999918 | J18: 343.1263287 | K18: 371.3730385 | L18: 0 | M18: 87.98251244 | N18: 0.7488005298 | O18: =SUMPRODUCT(M$14:M18,N$14:N18)+J18*N18 -> 1388.269587 | R18: 297.0984308 | S18: 334.2357346 | T18: 371.3730385 | U18: 408.5103423 | V18: 445.6476462 | X18: 64.16410506 | Y18: 57.289761 | Z18: 50.98317006 | AA18: 45.212176 | AB18: 39.94556006 | AD18: 85.17661752 | AE18: 87.45848003 | AF18: 87.98251244 | AG18: 87.02596888 | AH18: 84.84248312 | AJ18: 0.7700669156 | AK18: =SUMPRODUCT(M$14:M18,AJ$14:AJ18)+J18*AJ18 -> 1403.782971 | AM18: =VLOOKUP(B18,Prices,IF(G$8=1,2,IF(G$8=2,4,6)))*AM$9+('Prices and weights'!H$19-E18)*'Prices and weights'!H$20 -> 155.3369949 | AN18: 70.08953374 | AO18: 439.4095565 | AP18: 67.0009991 | AQ18: 377.4389616 | AR18: 135.0375171 | AS18: =SUMPRODUCT(AR$14:AR18,N$14:N18)+AQ18*N18 -> 1764.167558
B19: 2021 | C19: 43.0807787 | D19: 6 | E19: 572 | F19: =VLOOKUP(B19,Prices,IF(G$8=1,2,IF(G$8=2,4,6)))+('Prices and weights'!H$19-E19)*'Prices and weights'!H$20 -> 139.0960196 | G19: 62.94350463 | H19: 332.4803708 | I19: 50.84353488 | J19: 286.4185798 | K19: 316.9483197 | L19: 0 | M19: 66.37558596 | N19: 0.6965586324 | O19: =SUMPRODUCT(M$14:M19,N$14:N19)+J19*N19 -> 1377.078232 | R19: 253.5586557 | S19: 285.2534877 | T19: 316.9483197 | U19: 348.6431516 | V19: 380.3379836 | X19: 57.42687403 | Y19: 49.84209207 | Z19: 43.0807787 | AA19: 37.07398432 | AB19: 31.75672025 | AD19: 65.88740366 | AE19: 66.9890408 | AF19: 66.37558596 | AG19: 64.41316954 | AH19: 61.42133373 | AJ19: 0.7213741598 | AK19: =SUMPRODUCT(M$14:M19,AJ$14:AJ19)+J19*AJ19 -> 1394.049333 | AM19: =VLOOKUP(B19,Prices,IF(G$8=1,2,IF(G$8=2,4,6)))*AM$9+('Prices and weights'!H$19-E19)*'Prices and weights'!H$20 -> 153.4013616 | AN19: 69.2378551 | AO19: 366.6743428 | AP19: 55.92788837 | AQ19: 315.0604378 | AR19: 105.6539114 | AS19: =SUMPRODUCT(AR$14:AR19,N$14:N19)+AQ19*N19 -> 1774.593276
B20: 2022 | C20: 36.403258 | D20: 7 | E20: 567 | F20: =VLOOKUP(B20,Prices,IF(G$8=1,2,IF(G$8=2,4,6)))+('Prices and weights'!H$19-E20)*'Prices and weights'!H$20 -> 136.7086785 | G20: 61.70783454 | H20: 273.7102946 | I20: 42.11936665 | J20: 237.2724321 | K20: 270.4995434 | L20: 0 | M20: 45.33011778 | N20: 0.6479615185 | O20: =SUMPRODUCT(M$14:M20,N$14:N20)+J20*N20 -> 1360.686475 | R20: 216.3996347 | S20: 243.4495891 | T20: 270.4995434 | U20: 297.5494978 | V20: 324.5994521 | X20: 51.39705226 | Y20: 43.3626201 | Z20: 36.403258 | AA20: 30.40066714 | AB20: 25.2465926 | AD20: 44.17820705 | AE20: 45.63414792 | AF20: 45.33011778 | AG20: 43.7179358 | AH20: 41.17455218 | AJ20: 0.6757603371 | AK20: =SUMPRODUCT(M$14:M20,AJ$14:AJ20)+J20*AJ20 -> 1378.405965 | AM20: =VLOOKUP(B20,Prices,IF(G$8=1,2,IF(G$8=2,4,6)))*AM$9+('Prices and weights'!H$19-E20)*'Prices and weights'!H$20 -> 150.7331863 | AN20: 67.87861799 | AO20: 301.7893618 | AP20: 46.33130332 | AQ20: 260.9996754 | AR20: 77.62112168 | AS20: =SUMPRODUCT(AR$14:AR20,N$14:N20)+AQ20*N20 -> 1774.548454
B21: 2023 | C21: 30.76075301 | D21: 8 | E21: 565 | F21: =VLOOKUP(B21,Prices,IF(G$8=1,2,IF(G$8=2,4,6)))+('Prices and weights'!H$19-E21)*'Prices and weights'!H$20 -> 135.2988814 | G21: 61.01342783 | H21: 228.0926815 | I21: 35.19035595 | J21: 198.2390052 | K21: 230.8578353 | L21: 0 | M21: 32.4252021 | N21: 0.6027549009 | O21: =SUMPRODUCT(M$14:M21,N$14:N21)+J21*N21 -> 1345.977051 | R21: 184.6862683 | S21: 207.7720518 | T21: 230.8578353 | U21: 253.9436189 | V21: 277.0294024 | X21: 46.00036177 | Y21: 37.72547949 | Z21: 30.76075301 | AA21: 24.92854706 | AB21: 20.07104112 | AD21: 30.94792007 | AE21: 32.5737839 | AF21: 32.4252021 | AG21: 31.0304687 | AH21: 28.81084406 | AJ21: 0.6330307607 | AK21: =SUMPRODUCT(M$14:M21,AJ$14:AJ21)+J21*AJ21 -> 1364.084204 | AM21: =VLOOKUP(B21,Prices,IF(G$8=1,2,IF(G$8=2,4,6)))*AM$9+('Prices and weights'!H$19-E21)*'Prices and weights'!H$20 -> 149.1655696 | AN21: 67.11477061 | AO21: 251.4697416 | AP21: 38.70939154 | AQ21: 218.0629057 | AR21: 59.32129779 | AS21: =SUMPRODUCT(AR$14:AR21,N$14:N21)+AQ21*N21 -> 1772.625396
B22: 2024 | C22: =C21*(1-N$4-N$5) -> 25.9928363 | D22: =IF(D21>0,D21+1,IF(G$5=B22,1,0)) -> 9 | E22: =VLOOKUP(D22,weights,IF(G$9=1,2,IF(G$9=2,3,4)))*(1+N$8)^(B22-G$5) -> 562 | F22: =VLOOKUP(B22,Prices,IF(G$8=1,2,IF(G$8=2,4,6)))+('Prices and weights'!H$19-E22)*'Prices and weights'!H$20 -> 136.3314379 | G22: =VLOOKUP(B22,Prices,IF(G$8=1,3,IF(G$8=2,5,7))) -> 61.35660868 | H22: =IF(B22>=G$5,E22*F22/100*N$3*C22/G$3,0) -> 193.1780317 | I22: =G$6*G22/100*(N$5*C22/G$3) -> 29.90310534 | J22: 168.4541601 | K22: =G$7*(1+N$7)^(B22-G$4)*C22/G$3 -> 197.0256196 | L22: 0 | M22: =H22+I22-K22-L22 -> 26.05551748 | N22: =1/(1+N$9)^(B22-G$4) -> 0.5607022334 | O22: =SUMPRODUCT(M$14:M22,N$14:N22)+J22*N22 -> 1335.54953 | R22: 157.6204957 | S22: 177.3230576 | T22: 197.0256196 | U22: 216.7281815 | V22: 236.4307435 | X22: 41.17032378 | Y22: 32.82116715 | Z22: 25.9928363 | AA22: 20.44140859 | AB22: 15.95647769 | AD22: 25.48165863 | AE22: 26.60720375 | AF22: 26.05551748 | AG22: 24.41012608 | AH22: 22.11392738 | AJ22: 0.5930030546 | AK22: =SUMPRODUCT(M$14:M22,AJ$14:AJ22)+J22*AJ22 -> 1353.937649 | AM22: =VLOOKUP(B22,Prices,IF(G$8=1,2,IF(G$8=2,4,6)))*AM$9+('Prices and weights'!H$19-E22)*'Prices and weights'!H$20 -> 150.2761217 | AN22: 67.49226954 | AO22: 212.9372788 | AP22: 32.89341588 | AQ22: 185.2995761 | AR22: 48.8050751 | AS22: =SUMPRODUCT(AR$14:AR22,N$14:N22)+AQ22*N22 -> 1772.449912
B23: 2025 | C23: =C22*(1-N$4-N$5) -> 21.96394667 | D23: =IF(D22>0,D22+1,IF(G$5=B23,1,0)) -> 10 | E23: =VLOOKUP(D23,weights,IF(G$9=1,2,IF(G$9=2,3,4)))*(1+N$8)^(B23-G$5) -> 559 | F23: =VLOOKUP(B23,Prices,IF(G$8=1,2,IF(G$8=2,4,6)))+('Prices and weights'!H$19-E23)*'Prices and weights'!H$20 -> 137.3972 | G23: =VLOOKUP(B23,Prices,IF(G$8=1,3,IF(G$8=2,5,7))) -> 61.7144 | H23: =IF(B23>=G$5,E23*F23/100*N$3*C23/G$3,0) -> 163.6333438 | I23: =G$6*G23/100*(N$5*C23/G$3) -> 25.41547107 | J23: 143.1738204 | K23: =G$7*(1+N$7)^(B23-G$4)*C23/G$3 -> 168.151515 | L23: 0 | M23: =H23+I23-K23-L23 -> 20.89729982 | N23: =1/(1+N$9)^(B23-G$4) -> 0.5215834729 | O23: =SUMPRODUCT(M$14:M23,N$14:N23)+J23*N23 -> 1326.673691 | R23: 134.521212 | S23: 151.3363635 | T23: 168.151515 | U23: 184.9666665 | V23: 201.781818 | X23: 36.84743979 | Y23: 28.55441542 | Z23: 21.96394667 | AA23: 16.76195504 | AB23: 12.68539976 | AD23: 20.84538768 | AE23: 21.66077895 | AF23: 20.89729982 | AG23: 19.18060403 | AH23: 16.9623009 | AJ23: 0.5555063743 | AK23: =SUMPRODUCT(M$14:M23,AJ$14:AJ23)+J23*AJ23 -> 1345.186371 | AM23: =VLOOKUP(B23,Prices,IF(G$8=1,2,IF(G$8=2,4,6)))*AM$9+('Prices and weights'!H$19-E23)*'Prices and weights'!H$20 -> 151.4232 | AN23: 67.88584 | AO23: 180.3376236 | AP23: 27.95701818 | AQ23: 157.4912024 | AR23: 40.14312678 | AS23: =SUMPRODUCT(AR$14:AR23,N$14:N23)+AQ23*N23 -> 1771.634825
B24: * BOY = Beginning of year | E24: =AVERAGE(E14:E23) -> 562 | F24: =AVERAGE(F14:F23) -> 149.9690068 | G24: =AVERAGE(G14:G23) -> 67.35713897 | O24: ** Net present value if replacement is sold in this year
B26: The Net Present Value (NPV) reflects the amount that could be paid for a replacement such that the rate of return from the investment would be exactly equal to the discount rate given all of the assumptions used in the analysis. If you have a targeted rate of return for investing in replacements, enter that as the discount rate.
B31: Sensitivity Analysis of NPV to varying annual cow costs
D32: Annual cow costs, $/year
D33: =E33-H46 -> 560 | E33: =F33-H46 -> 630 | F33: =G7 -> 700 | G33: =F33+H46 -> 770 | H33: =G33+H46 -> 840
B34: Year | C34: Calf | D34: NPV** | E34: NPV** | F34: NPV** | G34: NPV** | H34: NPV**
B35: =B14 -> 2016 | C35: =D14 -> 1 | D35: =SUMPRODUCT(M$14:M14,N$14:N14)+J14*N14+SUMPRODUCT(K$14:K14,N$14:N14)-SUMPRODUCT(R$14:R14,N$14:N14) -> 1632.104058 | E35: =SUMPRODUCT(M$14:M14,N$14:N14)+J14*N14+SUMPRODUCT(K$14:K14,N$14:N14)-SUMPRODUCT(S$14:S14,N$14:N14) -> 1562.104058 | F35: =SUMPRODUCT(M$14:M14,N$14:N14)+J14*N14+SUMPRODUCT(K$14:K14,N$14:N14)-SUMPRODUCT(T$14:T14,N$14:N14) -> 1492.104058 | G35: =SUMPRODUCT(M$14:M14,N$14:N14)+J14*N14+SUMPRODUCT(K$14:K14,N$14:N14)-SUMPRODUCT(U$14:U14,N$14:N14) -> 1422.104058 | H35: =SUMPRODUCT(M$14:M14,N$14:N14)+J14*N14+SUMPRODUCT(K$14:K14,N$14:N14)-SUMPRODUCT(V$14:V14,N$14:N14) -> 1352.104058
B36: =+B35+1 -> 2017 | C36: =D15 -> 2 | D36: =SUMPRODUCT(M$14:M15,N$14:N15)+J15*N15+SUMPRODUCT(K$14:K15,N$14:N15)-SUMPRODUCT(R$14:R15,N$14:N15) -> 1668.317797 | E36: =SUMPRODUCT(M$14:M15,N$14:N15)+J15*N15+SUMPRODUCT(K$14:K15,N$14:N15)-SUMPRODUCT(S$14:S15,N$14:N15) -> 1542.744309 | F36: =SUMPRODUCT(M$14:M15,N$14:N15)+J15*N15+SUMPRODUCT(K$14:K15,N$14:N15)-SUMPRODUCT(T$14:T15,N$14:N15) -> 1417.170821 | G36: =SUMPRODUCT(M$14:M15,N$14:N15)+J15*N15+SUMPRODUCT(K$14:K15,N$14:N15)-SUMPRODUCT(U$14:U15,N$14:N15) -> 1291.597332 | H36: =SUMPRODUCT(M$14:M15,N$14:N15)+J15*N15+SUMPRODUCT(K$14:K15,N$14:N15)-SUMPRODUCT(V$14:V15,N$14:N15) -> 1166.023844
B37: 2018 | C37: 3 | D37: =SUMPRODUCT(M$14:M16,N$14:N16)+J16*N16+SUMPRODUCT(K$14:K16,N$14:N16)-SUMPRODUCT(R$14:R16,N$14:N16) -> 1753.194545 | E37: =SUMPRODUCT(M$14:M16,N$14:N16)+J16*N16+SUMPRODUCT(K$14:K16,N$14:N16)-SUMPRODUCT(S$14:S16,N$14:N16) -> 1583.500876 | F37: =SUMPRODUCT(M$14:M16,N$14:N16)+J16*N16+SUMPRODUCT(K$14:K16,N$14:N16)-SUMPRODUCT(T$14:T16,N$14:N16) -> 1413.807208 | G37: =SUMPRODUCT(M$14:M16,N$14:N16)+J16*N16+SUMPRODUCT(K$14:K16,N$14:N16)-SUMPRODUCT(U$14:U16,N$14:N16) -> 1244.113539 | H37: =SUMPRODUCT(M$14:M16,N$14:N16)+J16*N16+SUMPRODUCT(K$14:K16,N$14:N16)-SUMPRODUCT(V$14:V16,N$14:N16) -> 1074.419871
B38: 2019 | C38: 4 | D38: =SUMPRODUCT(M$14:M17,N$14:N17)+J17*N17+SUMPRODUCT(K$14:K17,N$14:N17)-SUMPRODUCT(R$14:R17,N$14:N17) -> 1817.055818 | E38: =SUMPRODUCT(M$14:M17,N$14:N17)+J17*N17+SUMPRODUCT(K$14:K17,N$14:N17)-SUMPRODUCT(S$14:S17,N$14:N17) -> 1612.33483 | F38: =SUMPRODUCT(M$14:M17,N$14:N17)+J17*N17+SUMPRODUCT(K$14:K17,N$14:N17)-SUMPRODUCT(T$14:T17,N$14:N17) -> 1407.613843 | G38: =SUMPRODUCT(M$14:M17,N$14:N17)+J17*N17+SUMPRODUCT(K$14:K17,N$14:N17)-SUMPRODUCT(U$14:U17,N$14:N17) -> 1202.892856 | H38: =SUMPRODUCT(M$14:M17,N$14:N17)+J17*N17+SUMPRODUCT(K$14:K17,N$14:N17)-SUMPRODUCT(V$14:V17,N$14:N17) -> 998.1718683
B39: 2020 | C39: 5 | D39: =SUMPRODUCT(M$14:M18,N$14:N18)+J18*N18+SUMPRODUCT(K$14:K18,N$14:N18)-SUMPRODUCT(R$14:R18,N$14:N18) -> 1853.328427 | E39: =SUMPRODUCT(M$14:M18,N$14:N18)+J18*N18+SUMPRODUCT(K$14:K18,N$14:N18)-SUMPRODUCT(S$14:S18,N$14:N18) -> 1620.799007 | F39: =SUMPRODUCT(M$14:M18,N$14:N18)+J18*N18+SUMPRODUCT(K$14:K18,N$14:N18)-SUMPRODUCT(T$14:T18,N$14:N18) -> 1388.269587 | G39: =SUMPRODUCT(M$14:M18,N$14:N18)+J18*N18+SUMPRODUCT(K$14:K18,N$14:N18)-SUMPRODUCT(U$14:U18,N$14:N18) -> 1155.740167 | H39: =SUMPRODUCT(M$14:M18,N$14:N18)+J18*N18+SUMPRODUCT(K$14:K18,N$14:N18)-SUMPRODUCT(V$14:V18,N$14:N18) -> 923.2107468
B40: 2021 | C40: 6 | D40: =SUMPRODUCT(M$14:M19,N$14:N19)+J19*N19+SUMPRODUCT(K$14:K19,N$14:N19)-SUMPRODUCT(R$14:R19,N$14:N19) -> 1886.29169 | E40: =SUMPRODUCT(M$14:M19,N$14:N19)+J19*N19+SUMPRODUCT(K$14:K19,N$14:N19)-SUMPRODUCT(S$14:S19,N$14:N19) -> 1631.684961 | F40: =SUMPRODUCT(M$14:M19,N$14:N19)+J19*N19+SUMPRODUCT(K$14:K19,N$14:N19)-SUMPRODUCT(T$14:T19,N$14:N19) -> 1377.078232 | G40: =SUMPRODUCT(M$14:M19,N$14:N19)+J19*N19+SUMPRODUCT(K$14:K19,N$14:N19)-SUMPRODUCT(U$14:U19,N$14:N19) -> 1122.471503 | H40: =SUMPRODUCT(M$14:M19,N$14:N19)+J19*N19+SUMPRODUCT(K$14:K19,N$14:N19)-SUMPRODUCT(V$14:V19,N$14:N19) -> 867.8647741
B41: 2022 | C41: 7 | D41: =SUMPRODUCT(M$14:M20,N$14:N20)+J20*N20+SUMPRODUCT(K$14:K20,N$14:N20)-SUMPRODUCT(R$14:R20,N$14:N20) -> 1904.954592 | E41: =SUMPRODUCT(M$14:M20,N$14:N20)+J20*N20+SUMPRODUCT(K$14:K20,N$14:N20)-SUMPRODUCT(S$14:S20,N$14:N20) -> 1632.820534 | F41: =SUMPRODUCT(M$14:M20,N$14:N20)+J20*N20+SUMPRODUCT(K$14:K20,N$14:N20)-SUMPRODUCT(T$14:T20,N$14:N20) -> 1360.686475 | G41: =SUMPRODUCT(M$14:M20,N$14:N20)+J20*N20+SUMPRODUCT(K$14:K20,N$14:N20)-SUMPRODUCT(U$14:U20,N$14:N20) -> 1088.552417 | H41: =SUMPRODUCT(M$14:M20,N$14:N20)+J20*N20+SUMPRODUCT(K$14:K20,N$14:N20)-SUMPRODUCT(V$14:V20,N$14:N20) -> 816.4183582
B42: 2023 | C42: 8 | D42: =SUMPRODUCT(M$14:M21,N$14:N21)+J21*N21+SUMPRODUCT(K$14:K21,N$14:N21)-SUMPRODUCT(R$14:R21,N$14:N21) -> 1918.075306 | E42: =SUMPRODUCT(M$14:M21,N$14:N21)+J21*N21+SUMPRODUCT(K$14:K21,N$14:N21)-SUMPRODUCT(S$14:S21,N$14:N21) -> 1632.026179 | F42: =SUMPRODUCT(M$14:M21,N$14:N21)+J21*N21+SUMPRODUCT(K$14:K21,N$14:N21)-SUMPRODUCT(T$14:T21,N$14:N21) -> 1345.977051 | G42: =SUMPRODUCT(M$14:M21,N$14:N21)+J21*N21+SUMPRODUCT(K$14:K21,N$14:N21)-SUMPRODUCT(U$14:U21,N$14:N21) -> 1059.927923 | H42: =SUMPRODUCT(M$14:M21,N$14:N21)+J21*N21+SUMPRODUCT(K$14:K21,N$14:N21)-SUMPRODUCT(V$14:V21,N$14:N21) -> 773.8787959
B43: 2024 | C43: 9 | D43: =SUMPRODUCT(M$14:M22,N$14:N22)+J22*N22+SUMPRODUCT(K$14:K22,N$14:N22)-SUMPRODUCT(R$14:R22,N$14:N22) -> 1929.742326 | E43: =SUMPRODUCT(M$14:M22,N$14:N22)+J22*N22+SUMPRODUCT(K$14:K22,N$14:N22)-SUMPRODUCT(S$14:S22,N$14:N22) -> 1632.645928 | F43: =SUMPRODUCT(M$14:M22,N$14:N22)+J22*N22+SUMPRODUCT(K$14:K22,N$14:N22)-SUMPRODUCT(T$14:T22,N$14:N22) -> 1335.54953 | G43: =SUMPRODUCT(M$14:M22,N$14:N22)+J22*N22+SUMPRODUCT(K$14:K22,N$14:N22)-SUMPRODUCT(U$14:U22,N$14:N22) -> 1038.453132 | H43: =SUMPRODUCT(M$14:M22,N$14:N22)+J22*N22+SUMPRODUCT(K$14:K22,N$14:N22)-SUMPRODUCT(V$14:V22,N$14:N22) -> 741.3567336
B44: 2025 | C44: 10 | D44: =SUMPRODUCT(M$14:M23,N$14:N23)+J23*N23+SUMPRODUCT(K$14:K23,N$14:N23)-SUMPRODUCT(R$14:R23,N$14:N23) -> 1938.407497 | E44: =SUMPRODUCT(M$14:M23,N$14:N23)+J23*N23+SUMPRODUCT(K$14:K23,N$14:N23)-SUMPRODUCT(S$14:S23,N$14:N23) -> 1632.540594 | F44: =SUMPRODUCT(M$14:M23,N$14:N23)+J23*N23+SUMPRODUCT(K$14:K23,N$14:N23)-SUMPRODUCT(T$14:T23,N$14:N23) -> 1326.673691 | G44: =SUMPRODUCT(M$14:M23,N$14:N23)+J23*N23+SUMPRODUCT(K$14:K23,N$14:N23)-SUMPRODUCT(U$14:U23,N$14:N23) -> 1020.806787 | H44: =SUMPRODUCT(M$14:M23,N$14:N23)+J23*N23+SUMPRODUCT(K$14:K23,N$14:N23)-SUMPRODUCT(V$14:V23,N$14:N23) -> 714.9398842
B45: ** Net present value if replacement is sold in this year
B46: Increment to use for annual costs/cow | H46: =G7*0.1 -> 70
B48: Values to include in chart (Calf number)
D49: Annual cow costs, $/year
B50: Calves | D50: =D33 -> 560 | E50: =E33 -> 630 | F50: =F33 -> 700 | G50: =G33 -> 770 | H50: =H33 -> 840
B51: 4 | C51: =B51&" calves" -> 4 calves | D51: =VLOOKUP($B51,$C$35:$H$44,2) -> 1817.055818 | E51: =VLOOKUP($B51,$C$35:$H$44,3) -> 1612.33483 | F51: =VLOOKUP($B51,$C$35:$H$44,4) -> 1407.613843 | G51: =VLOOKUP($B51,$C$35:$H$44,5) -> 1202.892856 | H51: =VLOOKUP($B51,$C$35:$H$44,6) -> 998.1718683
B52: 7 | C52: =B52&" calves" -> 7 calves | D52: =VLOOKUP($B52,$C$35:$H$44,2) -> 1904.954592 | E52: =VLOOKUP($B52,$C$35:$H$44,3) -> 1632.820534 | F52: =VLOOKUP($B52,$C$35:$H$44,4) -> 1360.686475 | G52: =VLOOKUP($B52,$C$35:$H$44,5) -> 1088.552417 | H52: =VLOOKUP($B52,$C$35:$H$44,6) -> 816.4183582
B53: 10 | C53: =B53&" calves" -> 10 calves | D53: =VLOOKUP($B53,$C$35:$H$44,2) -> 1938.407497 | E53: =VLOOKUP($B53,$C$35:$H$44,3) -> 1632.540594 | F53: =VLOOKUP($B53,$C$35:$H$44,4) -> 1326.673691 | G53: =VLOOKUP($B53,$C$35:$H$44,5) -> 1020.806787 | H53: =VLOOKUP($B53,$C$35:$H$44,6) -> 714.9398842
B57: Sensitivity Analysis of NPV to varying annual cow cull rates
D58: Annual cow cull rate, %
D59: =E59-H72 -> 0.1 | E59: =F59-H72 -> 0.125 | F59: =N5 -> 0.15 | G59: =F59+H72 -> 0.175 | H59: =G59+H72 -> 0.2
B60: Year | C60: Calf | D60: NPV** | E60: NPV** | F60: NPV** | G60: NPV** | H60: NPV**
B61: =B14 -> 2016 | C61: =D14 -> 1 | D61: =SUMPRODUCT(AD$14:AD14,N$14:N14)+IF(B14>=G$5,G$6*G14/100*(X14*(1-N$4-X$12))/G$3,0)*N14 -> 1492.104058 | E61: =SUMPRODUCT(AE$14:AE14,N$14:N14)+IF(B14>=G$5,G$6*G14/100*(Y14*(1-N$4-Y$12))/G$3,0)*N14 -> 1492.104058 | F61: =SUMPRODUCT(AF$14:AF14,N$14:N14)+IF(B14>=G$5,G$6*G14/100*(Z14*(1-N$4-Z$12))/G$3,0)*N14 -> 1492.104058 | G61: =SUMPRODUCT(AG$14:AG14,N$14:N14)+IF(B14>=G$5,G$6*G14/100*(AA14*(1-N$4-AA$12))/G$3,0)*N14 -> 1492.104058 | H61: =SUMPRODUCT(AH$14:AH14,N$14:N14)+IF(B14>=G$5,G$6*G14/100*(AB14*(1-N$4-AB$12))/G$3,0)*N14 -> 1492.104058
B62: =+B61+1 -> 2017 | C62: =D15 -> 2 | D62: =SUMPRODUCT(AD$14:AD15,N$14:N15)+IF(B15>=G$5,G$6*G15/100*(X15*(1-N$4-X$12))/G$3,0)*N15 -> 1412.736901 | E62: =SUMPRODUCT(AE$14:AE15,N$14:N15)+IF(B15>=G$5,G$6*G15/100*(Y15*(1-N$4-Y$12))/G$3,0)*N15 -> 1414.953861 | F62: =SUMPRODUCT(AF$14:AF15,N$14:N15)+IF(B15>=G$5,G$6*G15/100*(Z15*(1-N$4-Z$12))/G$3,0)*N15 -> 1417.170821 | G62: =SUMPRODUCT(AG$14:AG15,N$14:N15)+IF(B15>=G$5,G$6*G15/100*(AA15*(1-N$4-AA$12))/G$3,0)*N15 -> 1419.38778 | H62: =SUMPRODUCT(AH$14:AH15,N$14:N15)+IF(B15>=G$5,G$6*G15/100*(AB15*(1-N$4-AB$12))/G$3,0)*N15 -> 1421.60474
B63: 2018 | C63: 3 | D63: =SUMPRODUCT(AD$14:AD16,N$14:N16)+IF(B16>=G$5,G$6*G16/100*(X16*(1-N$4-X$12))/G$3,0)*N16 -> 1408.963451 | E63: =SUMPRODUCT(AE$14:AE16,N$14:N16)+IF(B16>=G$5,G$6*G16/100*(Y16*(1-N$4-Y$12))/G$3,0)*N16 -> 1411.388274 | F63: =SUMPRODUCT(AF$14:AF16,N$14:N16)+IF(B16>=G$5,G$6*G16/100*(Z16*(1-N$4-Z$12))/G$3,0)*N16 -> 1413.807208 | G63: =SUMPRODUCT(AG$14:AG16,N$14:N16)+IF(B16>=G$5,G$6*G16/100*(AA16*(1-N$4-AA$12))/G$3,0)*N16 -> 1416.220254 | H63: =SUMPRODUCT(AH$14:AH16,N$14:N16)+IF(B16>=G$5,G$6*G16/100*(AB16*(1-N$4-AB$12))/G$3,0)*N16 -> 1418.627411
B64: 2019 | C64: 4 | D64: =SUMPRODUCT(AD$14:AD17,N$14:N17)+IF(B17>=G$5,G$6*G17/100*(X17*(1-N$4-X$12))/G$3,0)*N17 -> 1401.604335 | E64: =SUMPRODUCT(AE$14:AE17,N$14:N17)+IF(B17>=G$5,G$6*G17/100*(Y17*(1-N$4-Y$12))/G$3,0)*N17 -> 1404.628778 | F64: =SUMPRODUCT(AF$14:AF17,N$14:N17)+IF(B17>=G$5,G$6*G17/100*(Z17*(1-N$4-Z$12))/G$3,0)*N17 -> 1407.613843 | G64: =SUMPRODUCT(AG$14:AG17,N$14:N17)+IF(B17>=G$5,G$6*G17/100*(AA17*(1-N$4-AA$12))/G$3,0)*N17 -> 1410.560493 | H64: =SUMPRODUCT(AH$14:AH17,N$14:N17)+IF(B17>=G$5,G$6*G17/100*(AB17*(1-N$4-AB$12))/G$3,0)*N17 -> 1413.469689
B65: 2020 | C65: 5 | D65: =SUMPRODUCT(AD$14:AD18,N$14:N18)+IF(B18>=G$5,G$6*G18/100*(X18*(1-N$4-X$12))/G$3,0)*N18 -> 1377.258911 | E65: =SUMPRODUCT(AE$14:AE18,N$14:N18)+IF(B18>=G$5,G$6*G18/100*(Y18*(1-N$4-Y$12))/G$3,0)*N18 -> 1382.891648 | F65: =SUMPRODUCT(AF$14:AF18,N$14:N18)+IF(B18>=G$5,G$6*G18/100*(Z18*(1-N$4-Z$12))/G$3,0)*N18 -> 1388.269587 | G65: =SUMPRODUCT(AG$14:AG18,N$14:N18)+IF(B18>=G$5,G$6*G18/100*(AA18*(1-N$4-AA$12))/G$3,0)*N18 -> 1393.405892 | H65: =SUMPRODUCT(AH$14:AH18,N$14:N18)+IF(B18>=G$5,G$6*G18/100*(AB18*(1-N$4-AB$12))/G$3,0)*N18 -> 1398.313371
B66: 2021 | C66: 6 | D66: =SUMPRODUCT(AD$14:AD19,N$14:N19)+IF(B19>=G$5,G$6*G19/100*(X19*(1-N$4-X$12))/G$3,0)*N19 -> 1362.340784 | E66: =SUMPRODUCT(AE$14:AE19,N$14:N19)+IF(B19>=G$5,G$6*G19/100*(Y19*(1-N$4-Y$12))/G$3,0)*N19 -> 1369.943865 | F66: =SUMPRODUCT(AF$14:AF19,N$14:N19)+IF(B19>=G$5,G$6*G19/100*(Z19*(1-N$4-Z$12))/G$3,0)*N19 -> 1377.078232 | G66: =SUMPRODUCT(AG$14:AG19,N$14:N19)+IF(B19>=G$5,G$6*G19/100*(AA19*(1-N$4-AA$12))/G$3,0)*N19 -> 1383.774959 | H66: =SUMPRODUCT(AH$14:AH19,N$14:N19)+IF(B19>=G$5,G$6*G19/100*(AB19*(1-N$4-AB$12))/G$3,0)*N19 -> 1390.063735
B67: 2022 | C67: 7 | D67: =SUMPRODUCT(AD$14:AD20,N$14:N20)+IF(B20>=G$5,G$6*G20/100*(X20*(1-N$4-X$12))/G$3,0)*N20 -> 1339.197581 | E67: =SUMPRODUCT(AE$14:AE20,N$14:N20)+IF(B20>=G$5,G$6*G20/100*(Y20*(1-N$4-Y$12))/G$3,0)*N20 -> 1350.418428 | F67: =SUMPRODUCT(AF$14:AF20,N$14:N20)+IF(B20>=G$5,G$6*G20/100*(Z20*(1-N$4-Z$12))/G$3,0)*N20 -> 1360.686475 | G67: =SUMPRODUCT(AG$14:AG20,N$14:N20)+IF(B20>=G$5,G$6*G20/100*(AA20*(1-N$4-AA$12))/G$3,0)*N20 -> 1370.086064 | H67: =SUMPRODUCT(AH$14:AH20,N$14:N20)+IF(B20>=G$5,G$6*G20/100*(AB20*(1-N$4-AB$12))/G$3,0)*N20 -> 1378.695632
B68: 2023 | C68: 8 | D68: =SUMPRODUCT(AD$14:AD21,N$14:N21)+IF(B21>=G$5,G$6*G21/100*(X21*(1-N$4-X$12))/G$3,0)*N21 -> 1317.200759 | E68: =SUMPRODUCT(AE$14:AE21,N$14:N21)+IF(B21>=G$5,G$6*G21/100*(Y21*(1-N$4-Y$12))/G$3,0)*N21 -> 1332.378555 | F68: =SUMPRODUCT(AF$14:AF21,N$14:N21)+IF(B21>=G$5,G$6*G21/100*(Z21*(1-N$4-Z$12))/G$3,0)*N21 -> 1345.977051 | G68: =SUMPRODUCT(AG$14:AG21,N$14:N21)+IF(B21>=G$5,G$6*G21/100*(AA21*(1-N$4-AA$12))/G$3,0)*N21 -> 1358.165532 | H68: =SUMPRODUCT(AH$14:AH21,N$14:N21)+IF(B21>=G$5,G$6*G21/100*(AB21*(1-N$4-AB$12))/G$3,0)*N21 -> 1369.0979
B69: 2024 | C69: 9 | D69: =SUMPRODUCT(AD$14:AD22,N$14:N22)+IF(B22>=G$5,G$6*G22/100*(X22*(1-N$4-X$12))/G$3,0)*N22 -> 1300.684499 | E69: =SUMPRODUCT(AE$14:AE22,N$14:N22)+IF(B22>=G$5,G$6*G22/100*(Y22*(1-N$4-Y$12))/G$3,0)*N22 -> 1319.211719 | F69: =SUMPRODUCT(AF$14:AF22,N$14:N22)+IF(B22>=G$5,G$6*G22/100*(Z22*(1-N$4-Z$12))/G$3,0)*N22 -> 1335.54953 | G69: =SUMPRODUCT(AG$14:AG22,N$14:N22)+IF(B22>=G$5,G$6*G22/100*(AA22*(1-N$4-AA$12))/G$3,0)*N22 -> 1349.965071 | H69: =SUMPRODUCT(AH$14:AH22,N$14:N22)+IF(B22>=G$5,G$6*G22/100*(AB22*(1-N$4-AB$12))/G$3,0)*N22 -> 1362.696655
B70: 2025 | C70: 10 | D70: =SUMPRODUCT(AD$14:AD23,N$14:N23)+IF(B23>=G$5,G$6*G23/100*(X23*(1-N$4-X$12))/G$3,0)*N23 -> 1285.794099 | E70: =SUMPRODUCT(AE$14:AE23,N$14:N23)+IF(B23>=G$5,G$6*G23/100*(Y23*(1-N$4-Y$12))/G$3,0)*N23 -> 1307.672609 | F70: =SUMPRODUCT(AF$14:AF23,N$14:N23)+IF(B23>=G$5,G$6*G23/100*(Z23*(1-N$4-Z$12))/G$3,0)*N23 -> 1326.673691 | G70: =SUMPRODUCT(AG$14:AG23,N$14:N23)+IF(B23>=G$5,G$6*G23/100*(AA23*(1-N$4-AA$12))/G$3,0)*N23 -> 1343.191406 | H70: =SUMPRODUCT(AH$14:AH23,N$14:N23)+IF(B23>=G$5,G$6*G23/100*(AB23*(1-N$4-AB$12))/G$3,0)*N23 -> 1357.570365
B71: ** Net present value if replacement is sold in this year
B72: Increment to use for cow cull rate | H72: 0.025
B74: Values to include in chart (Calf number)
D75: Annual cow cull rate, %
B76: Calves | D76: =D59 -> 0.1 | E76: =E59 -> 0.125 | F76: =F59 -> 0.15 | G76: =G59 -> 0.175 | H76: =H59 -> 0.2
B77: 4 | C77: =B77&" calves" -> 4 calves | D77: =VLOOKUP($B77,$C$61:$H$70,2) -> 1401.604335 | E77: =VLOOKUP($B77,$C$61:$H$70,3) -> 1404.628778 | F77: =VLOOKUP($B77,$C$61:$H$70,4) -> 1407.613843 | G77: =VLOOKUP($B77,$C$61:$H$70,5) -> 1410.560493 | H77: =VLOOKUP($B77,$C$61:$H$70,6) -> 1413.469689
B78: 7 | C78: =B78&" calves" -> 7 calves | D78: =VLOOKUP($B78,$C$61:$H$70,2) -> 1339.197581 | E78: =VLOOKUP($B78,$C$61:$H$70,3) -> 1350.418428 | F78: =VLOOKUP($B78,$C$61:$H$70,4) -> 1360.686475 | G78: =VLOOKUP($B78,$C$61:$H$70,5) -> 1370.086064 | H78: =VLOOKUP($B78,$C$61:$H$70,6) -> 1378.695632
B79: 10 | C79: =B79&" calves" -> 10 calves | D79: =VLOOKUP($B79,$C$61:$H$70,2) -> 1285.794099 | E79: =VLOOKUP($B79,$C$61:$H$70,3) -> 1307.672609 | F79: =VLOOKUP($B79,$C$61:$H$70,4) -> 1326.673691 | G79: =VLOOKUP($B79,$C$61:$H$70,5) -> 1343.191406 | H79: =VLOOKUP($B79,$C$61:$H$70,6) -> 1357.570365

Sheet Sensitivity Table
B2: Sensitivity of results in "Net present value" tab
B3: Range NPV values are pulled from | D3: O14:O23 | E3: E35:E44 | F3: AK14:AK23 | G3: AS14:AS23
B5: Table 1. Net Present Value of Beef Replacements, Sensitivity Analysis Summary* | I5: Marginal Impacts (relative to Base Case):
C6: Number | E6: 10% Lower | F6: 10% Lower | G6: 10% Higher | I6: Costs | J6: Discount | K6: Prices | L6: Costs | M6: Discount | N6: Prices
B7: Year | C7: of Calves | D7: Base Case | E7: Cow Costs/yr | F7: Discount Rate | G7: Calf Prices | I7: $/head | J7: $/head | K7: $/head | L7: % | M7: % | N7: %
B8: ='Net present value'!B14 -> 2016 | C8: ='Net present value'!D14 -> 1 | D8: ='Net present value'!O14 -> 1492.104058 | E8: ='Net present value'!E35 -> 1562.104058 | F8: ='Net present value'!AK14 -> 1492.104058 | G8: ='Net present value'!AS14 -> 1712.067008 | I8: =E8-$D8 -> 70 | J8: =F8-$D8 -> 0 | K8: =G8-$D8 -> 219.96295 | L8: =I8/$D8 -> 0.04691361815 | M8: =J8/$D8 -> 0 | N8: =K8/$D8 -> 0.1474179692
B9: ='Net present value'!B15 -> 2017 | C9: ='Net present value'!D15 -> 2 | D9: ='Net present value'!O15 -> 1417.170821 | E9: ='Net present value'!E36 -> 1542.744309 | F9: ='Net present value'!AK15 -> 1423.338064 | G9: ='Net present value'!AS15 -> 1686.170765 | I9: 125.5734884 | J9: 6.167243065 | K9: 268.9999449 | L9: 0.08860857601 | M9: 0.004351799356 | N9: 0.1898147641
B10: ='Net present value'!B16 -> 2018 | C10: ='Net present value'!D16 -> 3 | D10: ='Net present value'!O16 -> 1413.807208 | E10: ='Net present value'!E37 -> 1583.500876 | F10: ='Net present value'!AK16 -> 1424.309783 | G10: ='Net present value'!AS16 -> 1727.640317 | I10: 169.6936685 | J10: 10.5025753 | K10: 313.833109 | L10: 0.1200260315 | M10: 0.007428576711 | N10: 0.2219773016
B11: ='Net present value'!B17 -> 2019 | C11: ='Net present value'!D17 -> 4 | D11: ='Net present value'!O17 -> 1407.613843 | E11: ='Net present value'!E38 -> 1612.33483 | F11: ='Net present value'!AK17 -> 1421.221665 | G11: ='Net present value'!AS17 -> 1756.799563 | I11: 204.7209873 | J11: 13.60782179 | K11: 349.1857195 | L11: 0.1454383163 | M11: 0.009667297505 | N11: 0.2480692565
B12: ='Net present value'!B18 -> 2020 | C12: ='Net present value'!D18 -> 5 | D12: ='Net present value'!O18 -> 1388.269587 | E12: ='Net present value'!E39 -> 1620.799007 | F12: ='Net present value'!AK18 -> 1403.782971 | G12: ='Net present value'!AS18 -> 1764.167558 | I12: 232.5294201 | J12: 15.51338421 | K12: 375.8979712 | L12: 0.1674958685 | M12: 0.01117461936 | N12: 0.2707672736
B13: ='Net present value'!B19 -> 2021 | C13: ='Net present value'!D19 -> 6 | D13: ='Net present value'!O19 -> 1377.078232 | E13: ='Net present value'!E40 -> 1631.684961 | F13: ='Net present value'!AK19 -> 1394.049333 | G13: ='Net present value'!AS19 -> 1774.593276 | I13: 254.6067289 | J13: 16.97110062 | K13: 397.5150436 | L13: 0.1848890811 | M13: 0.01232399164 | N13: 0.2886655488
B14: ='Net present value'!B20 -> 2022 | C14: ='Net present value'!D20 -> 7 | D14: ='Net present value'!O20 -> 1360.686475 | E14: ='Net present value'!E41 -> 1632.820534 | F14: ='Net present value'!AK20 -> 1378.405965 | G14: ='Net present value'!AS20 -> 1774.548454 | I14: 272.1340584 | J14: 17.71948951 | K14: 413.8619786 | L14: 0.1999976214 | M14: 0.01302246317 | N14: 0.3041567519
B15: ='Net present value'!B21 -> 2023 | C15: ='Net present value'!D21 -> 8 | D15: ='Net present value'!O21 -> 1345.977051 | E15: ='Net present value'!E42 -> 1632.026179 | F15: ='Net present value'!AK21 -> 1364.084204 | G15: ='Net present value'!AS21 -> 1772.625396 | I15: 286.0491276 | J15: 18.10715341 | K15: 426.6483448 | L15: 0.2125215488 | M15: 0.01345279505 | N15: 0.3169804005
B16: ='Net present value'!B22 -> 2024 | C16: ='Net present value'!D22 -> 9 | D16: ='Net present value'!O22 -> 1335.54953 | E16: ='Net present value'!E43 -> 1632.645928 | F16: ='Net present value'!AK22 -> 1353.937649 | G16: ='Net present value'!AS22 -> 1772.449912 | I16: 297.0963981 | J16: 18.38811939 | K16: 436.9003817 | L16: 0.2224525497 | M16: 0.01376820476 | N16: 0.3271315455
B17: ='Net present value'!B23 -> 2025 | C17: ='Net present value'!D23 -> 10 | D17: ='Net present value'!O23 -> 1326.673691 | E17: ='Net present value'!E44 -> 1632.540594 | F17: ='Net present value'!AK23 -> 1345.186371 | G17: ='Net present value'!AS23 -> 1771.634825 | I17: 305.8669032 | J17: 18.51268012 | K17: 444.9611345 | L17: 0.2305517215 | M17: 0.01395420761 | N17: 0.3353960643
B19: Key Inputs Varied Across Scenarios**:
B20: Annual cow costs, $/year | D20: ='Net present value'!G7 -> 700 | E20: ='Net present value'!E33 -> 630 | F20: =D20 -> 700 | G20: =D20 -> 700
B21: Discount rate, interest rate | D21: ='Net present value'!$N9 -> 0.075 | E21: ='Net present value'!$N9 -> 0.075 | F21: 0.0675 | G21: =D21 -> 0.075
B22: Calf Price, $/cwt | C22: =B8 -> 2016 | D22: ='Net present value'!F14 -> 203.5686 | E22: =D22 -> 203.5686 | F22: =E22 -> 203.5686 | G22: ='Net present value'!AM14 -> 224.0686
C23: 2017 | D23: ='Net present value'!F15 -> 167.2955373 | E23: =D23 -> 167.2955373 | F23: 167.2955373 | G23: ='Net present value'!AM15 -> 184.252431
C24: 2018 | D24: ='Net present value'!F16 -> 155.0868667 | E24: 155.0868667 | F24: 155.0868667 | G24: ='Net present value'!AM16 -> 170.9070934
C25: 2019 | D25: ='Net present value'!F17 -> 148.0511598 | E25: 148.0511598 | F25: 148.0511598 | G25: ='Net present value'!AM17 -> 163.2099158
C26: 2020 | D26: ='Net present value'!F18 -> 140.8556862 | E26: 140.8556862 | F26: 140.8556862 | G26: ='Net present value'!AM18 -> 155.3369949
C27: 2021 | D27: ='Net present value'!F19 -> 139.0960196 | E27: 139.0960196 | F27: 139.0960196 | G27: ='Net present value'!AM19 -> 153.4013616
C28: 2022 | D28: ='Net present value'!F20 -> 136.7086785 | E28: 136.7086785 | F28: 136.7086785 | G28: ='Net present value'!AM20 -> 150.7331863
C29: 2023 | D29: ='Net present value'!F21 -> 135.2988814 | E29: 135.2988814 | F29: 135.2988814 | G29: ='Net present value'!AM21 -> 149.1655696
C30: 2024 | D30: ='Net present value'!F22 -> 136.3314379 | E30: 136.3314379 | F30: 136.3314379 | G30: ='Net present value'!AM22 -> 150.2761217
C31: 2025 | D31: ='Net present value'!F23 -> 137.3972 | E31: 137.3972 | F31: 137.3972 | G31: ='Net present value'!AM23 -> 151.4232
B32: * NPV is Net Present Value of a replacement expected to produce the number of saleable calves listed in the "Number of Calves" column before a cow is culled for age-related reasons.
B35: ** Annual cow cost, discount rate, and calf price assumptions were varied with all other inputs set at their default settings as of 11-1-13.
